Cogmind - Beta 12 @@@ ROGUE MODE // 2023.11.21 @ 08:46:17 Player: Dosh Result: Smashed by cave-in Performance ------------- Evolutions (0) 0 Regions Visited (2) 400 Robots Destroyed (10) 50 Value Destroyed (335) 335 Prototype IDs (0) 0 Alien Tech Used (0) 0 Bonus (0) 0 TOTAL SCORE: 785 Bonus ------- None Cogmind --------- Core Integrity 0/250 Matter 125/300 Energy 98/100 System Corruption 8% Temperature Cool (1) Movement Treading (240) Ox1 Location -10/Mines Parts ------- > --- POWER (1) -------- (None) > --- PROPULSION (2) --- Light Treads > --- UTILITY (2) ------ Large Storage Unit > --- WEAPON (2) ------- Assault Rifle > --- INVENTORY (15) --- Wheel Weight Redist. System Experimental Sensor Array Signal Interpreter Terrain Scanner Light Armor Plating Grenade Launcher Peak State ------------ > --- POWER ------------ Light Nuclear Core > --- PROPULSION ------- Light Treads Light Treads > --- UTILITY ---------- Small Storage Unit Signal Interpreter > --- WEAPON ----------- Assault Rifle Light Assault Rifle > --- INVENTORY -------- Ion Engine Light Ion Engine Wheel Wheel [Rating: 9] Favorites ----------- Power Light Nuclear Core Engine Ion Engine Power Core Light Nuclear Core Propulsion Light Treads Treads Light Treads Wheel Wheel Utility Signal Interpreter Storage Large Storage Unit Processor Signal Interpreter Weapon Assault Rifle Ballistic Gun Assault Rifle Launcher Grenade Launcher Build | -11 -10 -10 ------- Run | Jun Mat Min Slots Evolved . | . . . Power . | . . . Propulsion . | . . . Utility . | . . . Weapon . | . . . Parts Attached 18 | 6 7 5 Power 3 | 1 2 . Engine 2 | 1 1 . Core 1 | . 1 . Reactor . | . . . Propulsion 6 | 2 1 3 Treads 5 | 2 1 2 Leg . | . . . Wheel 1 | . . 1 Hover . | . . . Flight . | . . . Utility 3 | 1 2 . Device . | . . . Storage 2 | 1 1 . Processor 1 | . 1 . Hackware . | . . . Protection . | . . . Artifact . | . . . Weapon 6 | 2 2 2 Energy Gun . | . . . Energy Cannon . | . . . Ballistic Gun 5 | 2 2 1 Ballistic Cannon . | . . . Launcher 1 | . . 1 Special Weapon . | . . . Impact Weapon . | . . . Slashing Weapon . | . . . Piercing Weapon . | . . . Special Melee Weapon . | . . . Unidentified Prototypes . | . . . Parts Lost 9 | . 2 7 Power 2 | . 1 1 Propulsion 3 | . . 3 Utility 1 | . . 1 Weapon 3 | . 1 2 Highest Loss Streak 4 | . 1 4 To Critical Strikes . | . . . Average Slot Usage (%) 87 | . 97 84 Engine 1 | . 3 . Core 2 | . 10 . Treads 27 | . 27 27 Storage 14 | . 14 14 Processor 13 | . 12 13 Ballistic Gun 17 | . 27 13 Launcher 10 | . . 13 Naked Turns . | . . . Heaviest Build 30 | 11 29 30 Greatest Support 40 | 40 40 40 Greatest Overweight (x) 9 | . . 9 Average Overweight (x) . | . . . Largest Inventory Capacity 15 | 8 15 15 Average Capacity 13 | 6 9 15 Most Carried 8 | 3 8 8 Average Carried 6 | 1 6 6 Final Capacity 15 | 8 15 15 Final Carried 8 | 3 8 7 Class Distribution -------------------- 100% | Mutant Dominant Class ---------------- Mutant | -10/Materials Mutant | -10/Mines Resources | -11 -10 -10 ----------- Run | Jun Mat Min Matter Collected 531 | 202 229 100 Remotely . | . . . Salvage Created 358 | . 329 29 Parts 22 | . 21 1 Haulers Intercepted 1 | . 1 . Recyclers Shooed . | . . . Parts Field Recycled . | . . . Retrieved Matter . | . . . Parts Self-Destructed . | . . . Prevented . | . . . Kills | -11 -10 -10 ------- Run | Jun Mat Min Combat Hostiles Destroyed 8 | . 6 2 Guns 7 | . 6 1 AOE 1 | . . 1 Classes Destroyed 4 | . 3 1 Hauler 1 | . 1 . Watcher 1 | . 1 . Grunt 6 | . 6 . Sentry 2 | . . 2 Best Kill Streak 3 | . 3 2 Combat Bots Only 2 | . 2 2 Max Kills in Single Turn 2 | . 2 1 Gunslinging . | . . . Exploded 1 | . . 1 Melee . | . . . Uniques/NPCs Destroyed . | . . . Combat | -11 -10 -10 -------- Run | Jun Mat Min Damage Taken 1272 | . 601 671 Core 265 | . 111 154 Absorbed by Shields . | . . . Core Remaining (%) 100 | 100 . . Volleys Fired 56 | . 37 19 Largest 2 | . 2 2 Hottest 50 | . 40 50 Shots Fired 99 | . 74 25 Gun 80 | . 74 6 Cannon . | . . . Launcher 19 | . . 19 Special . | . . . Kinetic 80 | . 74 6 Thermal . | . . . Explosive 19 | . . 19 Electromagnetic . | . . . Robot Hit Streak 12 | . 12 5 Robot Miss Streak 4 | . 4 1 Penetration Max . | . . . Secondary Targets . | . . . Shots Hit Robots 55 | . 48 7 Core Hits 25 | . 18 7 Critical Kills 1 | . 1 . Critical Parts Destroyed 2 | . 2 . Critical Strikes 3 | . 3 . Destroy 3 | . 3 . Melee Attacks . | . . . Impact . | . . . Slashing . | . . . Piercing . | . . . Sneak Attacks . | . . . Combat Hostiles . | . . . Follow-up Attacks . | . . . Damage Inflicted 812 | . 562 250 Guns 597 | . 560 37 Cannons . | . . . Explosions 169 | . . 169 Melee . | . . . Ramming 46 | . 2 44 Kinetic 597 | . 560 37 Thermal . | . . . Explosive 169 | . . 169 Electromagnetic . | . . . Impact . | . . . Slashing . | . . . Piercing . | . . . Highest Corruption 8 | . . 8 Average Corruption 8 | . . 8 Corruption Purged . | . . . Corruption Blocked . | . . . Effects 1 | . . 1 Energy Discharges 1 | . . 1 Overload Shots . | . . . Overflow Damage 12 | . . 12 Projectiles . | . . . Explosions 12 | . . 12 Melee . | . . . Knockbacks 1 | . . 1 Impact 1 | . . 1 Kinetic . | . . . Secondary . | . . . Self-Inflicted Damage 177 | . . 177 Shots 11 | . . 11 Rammed 9 | . 1 8 Targets Rammed 9 | . 1 8 Kicked . | . . . Crushed . | . . . Highest Temperature 36 | . 36 27 Average Temperature 14 | . 13 16 Received Heat Transfer 411 | . 339 72 Siege Activations . | . . . Robots Corrupted . | . . . Combat Hostiles . | . . . Parts Fried . | . . . Impact Corruptions . | . . . Robots Melted . | . . . Combat Hostiles . | . . . Parts Melted . | . . . Heat Transferred . | . . . Parts Sabotaged . | . . . Parts Stolen . | . . . Parts Stripped . | . . . Power Chain Reactions . | . . . Missiles Intercepted . | . . . Alert | -11 -10 -10 ------- Run | Jun Mat Min Peak Influence 154 | . 154 75 Initial 34 | . . 34 Average 30 | . 78 14 Maximum Alert Level . | . . . Low Security (%) 100 | 100 100 100 Level 1 . | . . . Level 2 . | . . . Level 3 . | . . . Level 4 . | . . . Level 5 . | . . . High Security . | . . . Max Security . | . . . Squads Dispatched 5 | . 5 . Investigation 3 | . 3 . Extermination . | . . . Reinforcement 2 | . 2 . Assault . | . . . Garrison . | . . . Intercept . | . . . Searches Triggered . | . . . Construction Impeded . | . . . Haulers Reinforced . | . . . Active Scanning Responses . | . . . Cargo Convoy Interrupts . | . . . Stealth | -11 -10 -10 --------- Run | Jun Mat Min Distress Signals 2 | . 2 . Communications Jammed . | . . . Distress Signals . | . . . Times Spotted 19 | . 17 2 Peak Tracking Total 3 | . 3 2 Tactical Retreats 1 | . 1 . Traps | -11 -10 -10 ------- Run | Jun Mat Min Traps Triggered 4 | . 4 . Indirectly . | . . . Trap Hack Attempts . | . . . Triggered . | . . . Disarmed . | . . . Reprogrammed . | . . . Reused . | . . . Traps Extracted . | . . . Installed . | . . . Triggered . | . . . Machines | -11 -10 -10 ---------- Run | Jun Mat Min Machines Disabled 3 | . . 3 Max in Single Turn 2 | . . 2 Machines Repaired . | . . . Machines Sabotaged . | . . . Overloaded Fab Kills . | . . . Hacking | -11 -10 -10 --------- Run | Jun Mat Min Machines Accessed . | . . . Terminals . | . . . Fabricators . | . . . Repair Stations . | . . . Recycling Units . | . . . Scanalyzers . | . . . Garrison Access . | . . . Total Hacks . | . . . Successful . | . . . Failed . | . . . Catastrophic . | . . . Database Lockouts . | . . . Manual . | . . . Terminals . | . . . Fabricators . | . . . Repair Stations . | . . . Recycling Units . | . . . Scanalyzers . | . . . Garrison Access . | . . . Terminal Hacks . | . . . Fabricator Hacks . | . . . Repair Station Hacks . | . . . Recycling Unit Hacks . | . . . Scanalyzer . | . . . Garrison Access Hacks . | . . . Unauthorized Hacks . | . . . Terminals . | . . . Fabricators . | . . . Repair Stations . | . . . Recycling Units . | . . . Scanalyzers . | . . . Garrison Access . | . . . Data Cores Recovered . | . . . Used . | . . . Hacking Detections . | . . . Full Trace Events . | . . . Feedback Events . | . . . Feedback Blocked . | . . . Robot Schematics Acquired . | . . . Robots Built . | . . . Authchips . | . . . Time . | . . . Total Robot Build Rating . | . . . Part Schematics Acquired . | . . . Parts Built . | . . . Authchips . | . . . Time . | . . . Total Part Build Rating . | . . . Parts Repaired . | . . . Time . | . . . Parts Recycled . | . . . Recycled Matter . | . . . Retrieved Matter . | . . . Retrieved Components . | . . . Parts Scanalyzed . | . . . Part Schematics Acquired . | . . . Parts Damaged . | . . . Bothacking | -11 -10 -10 ------------ Run | Jun Mat Min Used RIF Installer . | . . . Robots Hacked . | . . . Non-combat . | . . . Combat . | . . . Robot Hacks Applied . | . . . Relay Couplers Released . | . . . Fabnet Peak Effective % . | . . . Robots Rewired . | . . . Allies Hacked . | . . . Hacks Repelled . | . . . Allies | -11 -10 -10 -------- Run | Jun Mat Min Total Allies . | . . . Largest Group . | . . . Highest-Rated Group . | . . . Highest-Rated Ally . | . . . Total Orders . | . . . Ally Attacks . | . . . Total Damage . | . . . Kills . | . . . Allies Corrupted . | . . . Allies Melted . | . . . Intel | -11 -10 -10 ------- Run | Jun Mat Min Robot Analysis Total . | . . . Derelict Logs Recovered 3 | . . 3 Drone Launches . | . . . Drone Recoveries . | . . . Exploration | -11 -10 -10 ------------- Run | Jun Mat Min Turns Passed 2671 | 80 676 1915 Spaces Moved 1348 | 52 297 999 Core 14 | 13 . 1 Treads 1334 | 39 297 998 Legs . | . . . Wheels . | . . . Hover . | . . . Flight . | . . . Fastest Speed 50 | 50 160 160 Average Speed 160 | 132 160 161 Slowest Speed 500 | 160 160 500 Overloaded Moves . | . . . Propulsion Burnouts . | . . . Robots Hopped . | . . . Cave-ins Triggered 2 | . . 2 Exploration Rate (%) 52 | 4 52 100 Regions Visited 2 Branch Regions 1 Pre-discovered Areas . | . . . Known Exits Taken 1 | . 1 . Unknown Exits Taken 1 | 1 . . Scrap Searched 2 | . . 2 Spaces Dug 61 | . . 61 Terrain Destroyed 141 | . . 141 Melee . | . . . Projectile . | . . . AOE 141 | . . 141 Terrain Rammed . | . . . Walls Destroyed . | . . . Machines Disabled . | . . . Actions | -11 -10 -10 --------- Run | Jun Mat Min Total 1757 | 60 427 1270 Wait 311 | . 74 237 Move 1345 | 51 296 998 Hop . | . . . Pick Up 12 | 3 7 2 Fast Attach 9 | 6 2 1 Attach 5 | . 1 4 Detach 1 | . . 1 Swap 4 | . 4 . Drop 5 | . 5 . Fire 56 | . 37 19 Melee . | . . . Ram . | . . . Kick . | . . . Crush 9 | . 1 8 Escape Stasis . | . . . Rewire . | . . . Trap . | . . . Miscellaneous . | . . . Route ------- -11/Junkyard -10/Materials (discovered 2 exits: *Min x2) -10/Mines (discovered 2 exits: *Mat x2) History --------- Turn | Location | Event 9 | -11/Junkyard | Discovered new exit (range 15) 81 | -11/Junkyard | Entered Materials 81 | -10/Materials | Discovered new exit (range 8) 315 | -10/Materials | Build established: Mutant 443 | -10/Materials | Discovered new exit (range 14) 755 | -10/Materials | Identified exit to Mines 757 | -10/Materials | Entered Mines 806 | -10/Mines | Learned location of 1 exit from Materials 827 | -10/Mines | Core integrity fell below 50% 863 | -10/Mines | Lost 4 parts (1p2n1w) 1015 | -10/Mines | YI-UF0 nonchalantly dropped a Grenade Launcher on the ground 1024 | -10/Mines | Discovered new exit (range 5) 1030 | -10/Mines | Identified exit to Materials 1223 | -10/Mines | Learned 4 Materials zone layouts 1232 | -10/Mines | Found a damaged Exp. Sensor Array with a note attached 1235 | -10/Mines | Found Prototype Device 1364 | -10/Mines | Learned Materials stockpile data 1448 | -10/Mines | Discovered exit to Materials (range 6) 2642 | -10/Mines | Crushed by falling debris 2642 | -10/Mines | Core integrity fell below 20% 2672 | -10/Mines | Crushed by falling debris 2672 | -10/Mines | Smashed by cave-in Last Messages --------------- 01783_ Slammed into T-07 Excavator. 01959_ Slammed into R-06 Scavenger. 01967_ Slammed into T-07 Excavator. 01967_ T-07 Excavator knocked back. 02015_ Slammed into R-06 Scavenger. 02160_ YI-UF0 mumbles something. 02612_ Laser Drill disabled. 02625_ The unstable cave ceiling collapses. 02642_ Crushed by falling debris. 02642_ Signal Interpreter destroyed. 02642_ System corrupted by crushing effect (+3). 02642_ Lgt. Treads destroyed. 02642_ System corrupted by crushing effect (+5). 02647_ The unstable cave ceiling collapses. 02660_ System corrupted: Energy discharge (-29). 02669_ The unstable cave ceiling collapses. 02670_ Grenade Launcher destroyed. 02670_ Destroyed Grenade Launcher. 02672_ The unstable cave ceiling collapses. 02672_ Crushed by falling debris. Map ----- +----------------------------------------------------+ | | | | | | | | | | | | | | | | | | | | | | | | | | | | | | | | | | | ?????????????????????????????????????????????????? | | ?????????????????????????????????????????????????? | | ???????????????????????????????????#######???????? | | ########????????????????????##?##### #???????? | | #???????????????##### ### # " ###?????? | | """ #??????????????## # " #?????? | | """ #??????????????# # " # #?????? | | """ #??????????????# # #?????? | | #??????????????# @ # # # # # #?????? | | #??????????????# ## # #?????? | | #??????????????# # # ## #?????? | | ### ###??????????????## ##### #?????? | | ### ############??????###### ########???# #?????? | | # # ##??????????###?????????## #?????? | | # # #????####?????????????## #?????? | | #!!### ##### #???## ##????????????# #?????? | | [ ### #?## #???# ##???????????# ##????? | | ### ##??# ####????????# ###??? | | ## #### #???????## #### | | #### ## #??????## | | ### """" ### #?????## ## | | ### """" ##?# #?????# ### | | ### """" ###??# ####### ##### | | ##?# ### ##????# ### | | ##??# ###?## ####?????# ##?# | | #??## ##????## ##???????######## #### ##??# | | #??# ##?????# ##???????## ##??# #??## #???# < | | #??# ##????# #?????#### ##?# #???# #???# | | ???# ##??## #?????# ### ##### #???# | | ???# #### #?????# #???##### | | ???# ## #?????# ## # ##########???????? | | ??# ## #?????# ## ## ##????????????????? | | ?# ### ####### ## ####?????????????????? | +----------------------------------------------------+ Best States ------------- Heat Dissipation 25 Energy Generation 14 Energy Capacity 250 Matter Stores 300 Matter Capacity 300 Sight Range 16 Terrain Scan Density 10 Evasion (%) 50 Recoil Reduction 2 Item Schematics ----------------- None Robot Schematics ------------------ None Fabricated ------------ Nothing Alien Tech Used ----------------- None Achievements -------------- None Challenges ------------ None Game ------ Seed LinkedHeatBeamcaster Manual? 0 Play Time 00:10:20 Cumulative 14.8 hours Start 2023.11.21 @ 08:35:49 End 2023.11.21 @ 08:46:17 Sessions 1 Manual Loads 0 Difficulty Rogue Special Mode None Game No. 33 Rogue 33 Adventurer 0 Explorer 0 Win Type - Total 0 Types 0/0/0/0/0/0/0/0/0 Lore% 17 Gallery% 21 Achievement% 17 Wizard Run 0 Options --------- ASCII 0 Keyboard 1 Movement Numpad Keybinds 0 Fullscreen 2 Font 18/SmallcapsGlow Map View 76x50 Tactical HUD 1 Map Filters NONE Filters NONE Steam 1 RUN: cb7a0c29-a7f0-468b-be10-451fcb61088e